[Event "Austrian Youth-ch U18 Boys 2024"]
[Site "Leibnitz"]
[Date "2024.03.26"]
[Round "5.2"]
[White "Wendl, Philipp"]
[Black "Gschiel, Alexander"]
[Result "1/2-1/2"]
[ECO "E33"]
[WhiteElo "2237"]
[BlackElo "2336"]
[Annotator "RC"]
[PlyCount "78"]
[EventDate "2024.03.23"]
[EventType "swiss"]
[EventCountry "AUT"]
[SourceTitle "playchess.com"]
[Source "ChessBase"]
[SourceQuality "1"]
[TimeControl "5400+30"]

1. c4 {[%emt 0:00:06]} e6 {[%emt 0:00:09]} 2. Nc3 {[%emt 0:00:16]} Nc6 {[%emt 0:00:09]} 3. d4 {[%emt 0:00:49]} Bb4 {[%emt 0:00:13]} 4. Nf3 {[%emt 0:03:00]} Nf6 {[%emt 0:01:47]} 5. Qc2 {[%emt 0:02:55]} d6 {[%emt 0:01:11]} 6. Bg5 {[%emt 0:03:15]} e5 {[%emt 0:03:44]} 7. d5 {[%emt 0:06:26]} Bxc3+ {[%emt 0:01:02]} 8. Qxc3 {[%emt 0:00:06]} Ne7 {[%emt 0:02:18]} 9. Bxf6 {[%emt 0:01:28]} gxf6 {[%emt 0:00:07]} 10. e3 {[%emt 0:01:34]} Rg8 {[%emt 0:07:36]} 11. g3 {[%emt 0:01:45]} Bg4 {[%emt 0:02:59]} 12. Be2 {[%emt 0:01:24]} Qd7 {[%emt 0:04:06]} 13. Qc2 {[%emt 0:03:43]} O-O-O {[%emt 0:07:56]} 14. O-O-O {[%emt 0:03:12]} c5 {[%emt 0:02:17]} 15. Nh4 {[%emt 0:08:12]} Bxe2 {[%emt 0:06:51]} 16. Qxe2 {[%emt 0:00:02]} f5 {[%emt 0:00:43]} 17. Kb1 {[%emt 0:03:44]} Ng6 {[%emt 0:08:59]} 18. Qh5 {[%emt 0:05:03]} Nxh4 {[%emt 0:02:18]} 19. Qxh4 {[%emt 0:00:26]} f6 {[%emt 0:00:05]} 20. b3 {[%emt 0:07:27]} Rdf8 {[%emt 0:06:22]} 21. Qh3 {[%emt 0:04:59]} Rg5 {[%emt 0:02:47]} 22. Rde1 {[%emt 0:04:56]} Qf7 {[%emt 0:05:46]} 23. Kb2 {[%emt 0:02:35]} Kc7 {[%emt 0:02:49]} 24. Re2 {[%emt 0:02:48]} b5 {[%emt 0:02:10]} 25. Rc1 {[%emt 0:02:22]} b4 {[%emt 0:06:04]} 26. Ra1 {[%emt 0:01:19]} Qh5 {[%emt 0:03:56]} 27. Qxh5 {[%emt 0:02:33]} Rxh5 {[%emt 0:00:04]} 28. a3 {[%emt 0:00:41]} Kb6 {[%emt 0:00:58]} 29. axb4 {[%emt 0:02:37]} cxb4 {[%emt 0:00:05]} 30. h4 {[%emt 0:00:05]} a5 {[%emt 0:01:56]} 31. Kc2 {[%emt 0:00:43]} Rf7 {[%emt 0:01:29]} 32. Kd3 {[%emt 0:00:24]} Ra7 {[%emt 0:00:45]} 33. Ra4 {[%emt 0:00:09]} Rh6 {[%emt 0:01:49]} 34. Re1 {[%emt 0:01:25]} Rg7 {[%emt 0:01:41]} 35. Rea1 {[%emt 0:00:40]} Ra7 {[%emt 0:00:04]} 36. R4a2 {[%emt 0:03:25]} Rg6 {[%emt 0:03:04]} 37. Ke2 {[%emt 0:02:05]} h5 {[%emt 0:00:34]} 38. Kf3 {[%emt 0:01:15]} Rg4 {[%emt 0:00:19]} 39. Ra4 {[%emt 0:01:28]} Ra6 {[%emt 0:00:30]} 1/2-1/2

[Event "Austrian Youth-ch U18 Boys 2024"]
[Site "Leibnitz"]
[Date "2024.03.26"]
[Round "5.3"]
[White "Lerch, Johannes"]
[Black "Kuti, Oliver"]
[Result "1-0"]
[ECO "E92"]
[WhiteElo "2258"]
[BlackElo "2006"]
[Annotator "RC"]
[PlyCount "61"]
[EventDate "2024.03.23"]
[EventType "swiss"]
[EventCountry "AUT"]
[SourceTitle "playchess.com"]
[Source "ChessBase"]
[SourceQuality "1"]
[TimeControl "5400+30"]

1. Nf3 {[%emt 0:00:11]} Nf6 {[%emt 0:00:05]} 2. c4 {[%emt 0:00:09]} g6 {[%emt 0:00:13]} 3. Nc3 {[%emt 0:00:10]} Bg7 {[%emt 0:00:19]} 4. e4 {[%emt 0:00:08]} d6 {[%emt 0:00:12]} 5. d4 {[%emt 0:00:22]} O-O {[%emt 0:00:16]} 6. Be2 {[%emt 0:00:19]} e5 {[%emt 0:01:34]} 7. O-O {[%emt 0:00:21]} Nc6 {[%emt 0:00:17]} 8. d5 {[%emt 0:00:16]} Ne7 {[%emt 0:00:04]} 9. Be3 {[%emt 0:00:17]} Nd7 {[%emt 0:11:38]} 10. Nd2 {[%emt 0:00:46]} f5 {[%emt 0:00:22]} 11. f3 {[%emt 0:00:07]} f4 {[%emt 0:01:30]} 12. Bf2 {[%emt 0:00:05]} g5 {[%emt 0:02:31]} 13. b4 {[%emt 0:01:03]} a5 {[%emt 0:14:16]} 14. bxa5 {[%emt 0:04:56]} Ng6 {[%emt 0:00:34]} 15. Nb3 {[%emt 0:04:39]} Nf6 {[%emt 0:01:22]} 16. c5 {[%emt 0:02:24]} h5 {[%emt 0:05:08]} 17. cxd6 {[%emt 0:11:10]} cxd6 {[%emt 0:00:09]} 18. Nb5 {[%emt 0:01:03]} g4 {[%emt 0:03:32]} 19. Bb6 {[%emt 0:03:07]} Qe7 {[%emt 0:00:08]} 20. Nc7 {[%emt 0:02:41]} Rb8 {[%emt 0:19:25]} 21. Ba7 {[%emt 0:19:56]} Qxc7 {[%emt 0:10:03]} 22. Rc1 {[%emt 0:00:13]} Qd8 {[%emt 0:00:50]} 23. Bxb8 {[%emt 0:00:34]} g3 {[%emt 0:01:23]} 24. Rxc8 {[%emt 0:09:44]} Qxc8 {[%emt 0:00:12]} 25. Bxd6 {[%emt 0:00:07]} Rd8 {[%emt 0:03:35]} 26. Bc5 {[%emt 0:01:26]} Nh7 {[%emt 0:01:33]} 27. Bb6 {[%emt 0:04:17]} Ng5 {[%emt 0:04:57]} 28. Qc1 {[%emt 0:08:52]} Nh4 {[%emt 0:01:16]} 29. Qxc8 {[%emt 0:02:06]} Rxc8 {[%emt 0:00:06]} 30. Rc1 {[%emt 0:00:47]} Rxc1+ {[%emt 0:01:20]} 31. Nxc1 {[%emt 0:00:05]} 1-0

[Event "Austrian Youth-ch U18 Boys 2024"]
[Site "Leibnitz"]
[Date "2024.03.26"]
[Round "5.4"]
[White "Hake, Nils"]
[Black "Miazhynski, Michael"]
[Result "1/2-1/2"]
[ECO "A61"]
[WhiteElo "1992"]
[BlackElo "2178"]
[Annotator "RC"]
[PlyCount "49"]
[EventDate "2024.03.23"]
[EventType "swiss"]
[EventCountry "AUT"]
[SourceTitle "playchess.com"]
[Source "ChessBase"]
[SourceQuality "1"]
[TimeControl "5400+30"]

1. d4 {[%emt 0:00:04]} Nf6 {[%emt 0:00:11]} 2. c4 {[%emt 0:00:07]} e6 {[%emt 0:00:16]} 3. Nf3 {[%emt 0:00:08]} c5 {[%emt 0:03:58]} 4. d5 {[%emt 0:00:39]} exd5 {[%emt 0:00:04]} 5. cxd5 {[%emt 0:00:05]} d6 {[%emt 0:00:02]} 6. Nc3 {[%emt 0:00:11]} g6 {[%emt 0:00:11]} 7. Bf4 {[%emt 0:00:05]} Bg7 {[%emt 0:00:35]} 8. Qa4+ {[%emt 0:00:13]} Bd7 {[%emt 0:00:04]} 9. Qb3 {[%emt 0:00:08]} b5 {[%emt 0:01:31]} 10. Bxd6 {[%emt 0:00:15]} Qb6 {[%emt 0:00:24]} 11. Be5 {[%emt 0:00:10]} O-O {[%emt 0:00:48]} 12. e3 {[%emt 0:01:26]} c4 {[%emt 0:08:01]} 13. Qd1 {[%emt 0:00:38]} Na6 {[%emt 0:03:16]} 14. Be2 {[%emt 0:02:06]} Rfe8 {[%emt 0:01:26]} 15. O-O {[%emt 0:01:25]} b4 {[%emt 0:14:20]} 16. Nb1 {[%emt 0:01:48]} Rac8 {[%emt 0:20:23]} 17. Nbd2 {[%emt 0:06:16]} Bb5 {[%emt 0:02:17]} 18. Rc1 {[%emt 0:05:35]} c3 {[%emt 0:06:48]} 19. bxc3 {[%emt 0:02:09]} Rxe5 {[%emt 0:11:25]} 20. Nxe5 {[%emt 0:02:09]} Nxd5 {[%emt 0:00:22]} 21. Bxb5 {[%emt 0:27:49]} Nxc3 {[%emt 0:09:51]} 22. Rxc3 {[%emt 0:04:29]} bxc3 {[%emt 0:03:05]} 23. Bxa6 {[%emt 0:13:35]} Qxa6 {[%emt 0:00:00]} 24. Ndc4 {[%emt 0:03:21]} c2 {[%emt 0:01:33]} 25. Qxc2 {[%emt 0:05:32]} 1/2-1/2

[Event "Austrian Youth-ch U18 Boys 2024"]
[Site "Leibnitz"]
[Date "2024.03.26"]
[Round "5.5"]
[White "Sohn, Benedikt"]
[Black "Zaytsev, Alexander"]
[Result "0-1"]
[ECO "D43"]
[WhiteElo "2061"]
[BlackElo "2018"]
[Annotator "NA RC"]
[PlyCount "60"]
[EventDate "2024.03.23"]
[EventType "swiss"]
[EventCountry "AUT"]
[SourceTitle "playchess.com"]
[Source "ChessBase"]
[SourceQuality "1"]
[TimeControl "5400+30"]

1. d4 {[%emt 0:00:03]} d5 {[%emt 0:00:06]} 2. c4 {[%emt 0:00:03]} c6 {[%emt 0:00:03]} 3. Nc3 {[%emt 0:00:03]} Nf6 {[%emt 0:00:05]} 4. Nf3 {[%emt 0:00:03]} e6 {[%emt 0:00:04]} 5. Bg5 {[%emt 0:00:03]} h6 {[%emt 0:00:27]} 6. Bh4 {[%emt 0:00:10]} dxc4 {[%emt 0:00:37]} 7. e4 {[%emt 0:00:11]} g5 {[%emt 0:00:44]} 8. Bg3 {[%emt 0:00:07]} b5 {[%emt 0:00:54]} 9. h4 {[%emt 0:00:04]} g4 {[%emt 0:13:14]} 10. Ne5 {[%emt 0:00:05]} Rg8 {[%emt 0:04:15]} 11. Be2 {[%emt 0:00:04]} h5 {[%emt 0:06:58]} 12. O-O {[%emt 0:02:04]} Bb7 {[%emt 0:02:20]} 13. Qd2 {[%emt 0:14:49]} Nbd7 {[%emt 0:11:14]} 14. Rad1 {[%emt 0:07:34]} Nxe5 {[%emt 0:10:53]} 15. Bxe5 {[%emt 0:00:49]} Be7 {[%emt 0:01:25]} 16. Qf4 {[%emt 0:03:27]} Rg6 {[%emt 0:04:38]} 17. f3 {[%emt 0:07:45]} g3 {[%emt 0:01:17]} 18. Bc7 {[%emt 0:09:24]} Qd7 {[%emt 0:02:13]} 19. b3 {[%emt 0:00:48]} Bb4 {[%emt 0:05:54]} 20. Be5 {[%emt 0:04:32]} Qe7 {[%emt 0:07:08]} 21. Rc1 {[%emt 0:05:00]} cxb3 {[%emt 0:08:19]} 22. Nxb5 {[%emt 0:03:39]} Rd8 {[%emt 0:04:45]} 23. axb3 {[%emt 0:02:29]} Kf8 {[%emt 0:02:47]} 24. Nxa7 {[%emt 0:02:15]} Nd7 {[%emt 0:04:11]} 25. Bc7 {[%emt 0:09:52]} Ra8 {[%emt 0:02:25]} 26. Rc4 {[%emt 0:07:55]} e5 {[%emt 0:04:27]} 27. dxe5 {[%emt 0:00:26]} Bd2 {[%emt 0:01:34]} 28. Bd6 {[%emt 0:00:01]} Bxf4 {[%emt 0:00:21]} 29. Bxe7+ {[%emt 0:00:01]} Kxe7 {[%emt 0:00:14]} 30. Ra1 {[%emt 0:00:27]} Be3+ {[%emt 0:00:20]} 0-1

[Event "Austrian Youth-ch U18 Boys 2024"]
[Site "Leibnitz"]
[Date "2024.03.26"]
[Round "5.6"]
[White "Marakovits, Nico"]
[Black "Karner, Daniel"]
[Result "1-0"]
[ECO "A58"]
[WhiteElo "2234"]
[BlackElo "1935"]
[Annotator "RC"]
[PlyCount "53"]
[EventDate "2024.03.23"]
[EventType "swiss"]
[EventCountry "AUT"]
[SourceTitle "playchess.com"]
[Source "ChessBase"]
[SourceQuality "1"]
[TimeControl "5400+30"]

1. d4 {[%emt 0:00:02]} Nf6 {[%emt 0:00:09]} 2. c4 {[%emt 0:00:05]} c5 {[%emt 0:00:07]} 3. d5 {[%emt 0:00:05]} b5 {[%emt 0:00:08]} 4. cxb5 {[%emt 0:00:04]} a6 {[%emt 0:00:07]} 5. bxa6 {[%emt 0:00:05]} g6 {[%emt 0:00:41]} 6. Nc3 {[%emt 0:00:10]} Bg7 {[%emt 0:00:33]} 7. e4 {[%emt 0:00:23]} O-O {[%emt 0:00:29]} 8. a7 {[%emt 0:00:03]} Rxa7 {[%emt 0:02:31]} 9. Nf3 {[%emt 0:00:13]} e6 {[%emt 0:02:06]} 10. Be2 {[%emt 0:00:13]} exd5 {[%emt 0:00:55]} 11. exd5 {[%emt 0:00:06]} d6 {[%emt 0:00:33]} 12. O-O {[%emt 0:00:06]} Na6 {[%emt 0:01:21]} 13. Bc4 {[%emt 0:08:46]} Nc7 {[%emt 0:06:54]} 14. a4 {[%emt 0:10:20]} Ba6 {[%emt 0:01:48]} 15. Bxa6 {[%emt 0:00:30]} Rxa6 {[%emt 0:00:05]} 16. Qd3 {[%emt 0:00:17]} Qa8 {[%emt 0:00:36]} 17. Rd1 {[%emt 0:00:10]} Rb8 {[%emt 0:05:46]} 18. Rb1 {[%emt 0:10:14]} Rb3 {[%emt 0:02:41]} 19. Qc2 {[%emt 0:15:15]} Rb8 {[%emt 0:01:14]} 20. Qd3 {[%emt 0:04:46]} Rb3 {[%emt 0:00:10]} 21. Qe2 {[%emt 0:01:19]} Rb8 {[%emt 0:05:42]} 22. Bg5 {[%emt 0:02:45]} Nfxd5 23. Nxd5 {[%emt 0:00:13]} Nxd5 {[%emt 0:03:31]} 24. Rxd5 {[%emt 0:00:35]} Qxd5 {[%emt 0:01:49]} 25. Qxa6 {[%emt 0:00:12]} Rxb2 {[%emt 0:00:10]} 26. Qc8+ {[%emt 0:02:34]} Bf8 {[%emt 0:00:04]} 27. Re1 {[%emt 0:00:08]} 1-0

[Event "Austrian Youth-ch U18 Boys 2024"]
[Site "Leibnitz"]
[Date "2024.03.26"]
[Round "5.7"]
[White "Ernst, Robert"]
[Black "Gruenwald, Beat"]
[Result "1-0"]
[ECO "A28"]
[WhiteElo "2332"]
[BlackElo "1774"]
[Annotator "RC"]
[PlyCount "69"]
[EventDate "2024.03.23"]
[EventType "swiss"]
[EventCountry "AUT"]
[SourceTitle "playchess.com"]
[Source "ChessBase"]
[SourceQuality "1"]
[TimeControl "5400+30"]

1. c4 {[%emt 0:00:01]} e5 {[%emt 0:00:11]} 2. e3 {[%emt 0:00:06]} Nf6 {[%emt 1:31:19]} 3. Nc3 {[%emt 0:00:08]} Nc6 {[%emt 0:00:00]} 4. Nf3 {[%emt 0:01:30]} Bb4 {[%emt 0:00:00]} 5. Qc2 {[%emt 0:05:24]} d6 {[%emt 0:00:00]} 6. Be2 {[%emt 0:02:08]} O-O {[%emt 0:00:00]} 7. O-O {[%emt 0:01:30]} Bd7 {[%emt 0:00:00]} 8. d3 {[%emt 0:01:01]} Bxc3 {[%emt 0:00:00]} 9. Qxc3 {[%emt 0:00:15]} Re8 {[%emt 0:00:00]} 10. Nd2 {[%emt 0:03:14]} Ne7 {[%emt 0:00:00]} 11. b4 {[%emt 0:01:48]} Ng6 {[%emt 0:00:00]} 12. Bb2 {[%emt 0:00:20]} c6 {[%emt 0:00:00]} 13. d4 {[%emt 0:10:32]} exd4 {[%emt 0:00:00]} 14. Qxd4 {[%emt 0:00:09]} Qe7 {[%emt 0:00:00]} 15. Rfd1 {[%emt 0:02:37]} Qe5 {[%emt 0:00:00]} 16. Nb3 {[%emt 0:03:24]} Qxd4 {[%emt 0:00:00]} 17. Bxd4 {[%emt 1:04:53]} d5 {[%emt 0:00:00]} 18. Bxf6 {[%emt 0:00:00]} gxf6 {[%emt 0:00:00]} 19. cxd5 {[%emt 0:00:00]} cxd5 {[%emt 0:00:00]} 20. Rxd5 {[%emt 0:00:00]} Be6 {[%emt 0:00:00]} 21. Rd2 {[%emt 0:00:00]} Red8 {[%emt 0:00:00]} 22. Nd4 {[%emt 0:00:00]} Rac8 {[%emt 0:00:00]} 23. Kf1 {[%emt 0:00:00]} Kf8 {[%emt 0:00:00]} 24. Rad1 {[%emt 0:00:00]} Ke7 {[%emt 0:00:00]} 25. Bf3 {[%emt 0:00:00]} Rb8 {[%emt 0:00:00]} 26. Be4 {[%emt 0:00:00]} Bc4+ {[%emt 0:00:00]} 27. Ke1 {[%emt 0:00:00]} Be6 {[%emt 0:00:00]} 28. f4 {[%emt 0:00:00]} Bg4 {[%emt 0:00:00]} 29. Nf5+ {[%emt 0:00:00]} Bxf5 {[%emt 0:00:00]} 30. Rxd8 {[%emt 0:00:00]} Rxd8 {[%emt 0:00:00]} 31. Bxf5 {[%emt 0:00:00]} Rxd1+ {[%emt 0:00:00]} 32. Kxd1 {[%emt 0:00:00]} Kd6 {[%emt 0:00:00]} 33. Bxg6 {[%emt 0:00:00]} fxg6 {[%emt 0:00:00]} 34. e4 {[%emt 0:00:00]} b5 {[%emt 0:00:00]} 35. Kd2 {[%emt 0:09:00]} 1-0

[Event "Austrian Youth-ch U18 Boys 2024"]
[Site "Leibnitz"]
[Date "2024.03.26"]
[Round "5.8"]
[White "Hengl, Philip"]
[Black "Wagner, Leopold Franziskus"]
[Result "1/2-1/2"]
[ECO "C65"]
[WhiteElo "2145"]
[BlackElo "2228"]
[Annotator "RC"]
[PlyCount "52"]
[EventDate "2024.03.23"]
[EventType "swiss"]
[EventCountry "AUT"]
[SourceTitle "playchess.com"]
[Source "ChessBase"]
[SourceQuality "1"]
[TimeControl "5400+30"]

1. e4 {[%emt 0:00:02]} Nc6 {[%emt 0:00:13]} 2. Nf3 {[%emt 0:00:07]} e5 {[%emt 0:00:10]} 3. Bb5 {[%emt 0:00:27]} Nf6 {[%emt 0:00:06]} 4. d3 {[%emt 0:01:19]} Bc5 {[%emt 0:02:42]} 5. c3 {[%emt 0:00:22]} d6 {[%emt 0:02:00]} 6. O-O {[%emt 0:00:16]} O-O {[%emt 0:01:02]} 7. Nbd2 {[%emt 0:00:59]} a6 {[%emt 0:00:58]} 8. Ba4 {[%emt 0:00:14]} b5 {[%emt 0:00:46]} 9. Bb3 {[%emt 0:02:18]} Bg4 {[%emt 0:06:29]} 10. Re1 {[%emt 0:04:00]} Re8 {[%emt 0:09:29]} 11. h3 {[%emt 0:03:03]} Bh5 {[%emt 0:05:26]} 12. Nf1 {[%emt 0:00:31]} h6 {[%emt 0:02:57]} 13. Ng3 {[%emt 0:01:33]} Bg6 {[%emt 0:00:57]} 14. Be3 {[%emt 0:08:43]} Bxe3 {[%emt 0:01:43]} 15. Rxe3 {[%emt 0:00:35]} Na5 {[%emt 0:06:31]} 16. Bc2 {[%emt 0:00:32]} c5 {[%emt 0:02:02]} 17. a4 {[%emt 0:14:51]} b4 {[%emt 0:02:14]} 18. Nd2 {[%emt 0:04:37]} d5 {[%emt 0:05:59]} 19. cxb4 {[%emt 0:01:37]} cxb4 {[%emt 0:00:58]} 20. Nb3 {[%emt 0:03:15]} Rc8 {[%emt 0:09:07]} 21. Nxa5 {[%emt 0:05:28]} Qxa5 {[%emt 0:00:03]} 22. Bb3 {[%emt 0:00:59]} dxe4 {[%emt 0:01:09]} 23. dxe4 {[%emt 0:00:54]} Red8 {[%emt 0:01:54]} 24. Qe2 {[%emt 0:08:22]} Rd4 {[%emt 0:09:48]} 25. Rd1 {[%emt 0:07:04]} Rcd8 {[%emt 0:01:30]} 26. Red3 {[%emt 0:03:03]} Qb6 {[%emt 0:08:12]} 1/2-1/2

[Event "Austrian Youth-ch U18 Boys 2024"]
[Site "Leibnitz"]
[Date "2024.03.27"]
[Round "6.1"]
[White "Zaytsev, Alexander"]
[Black "Balint, Peter"]
[Result "1/2-1/2"]
[ECO "C75"]
[WhiteElo "2018"]
[BlackElo "2345"]
[Annotator "RC"]
[PlyCount "39"]
[EventDate "2024.03.23"]
[EventType "swiss"]
[EventCountry "AUT"]
[SourceTitle "playchess.com"]
[Source "ChessBase"]
[SourceQuality "1"]
[TimeControl "5400+30"]

1. e4 {[%emt 0:00:03]} e5 {[%emt 0:00:04]} 2. Nf3 {[%emt 0:00:10]} Nc6 {[%emt 0:00:04]} 3. Bb5 {[%emt 0:00:09]} a6 {[%emt 0:00:09]} 4. Ba4 {[%emt 0:00:08]} d6 {[%emt 0:00:19]} 5. O-O {[%emt 0:04:51]} Bd7 {[%emt 0:00:46]} 6. c3 {[%emt 0:00:36]} Nge7 {[%emt 0:00:24]} 7. d4 {[%emt 0:02:04]} Ng6 {[%emt 0:00:15]} 8. Re1 {[%emt 0:03:33]} Be7 {[%emt 0:00:08]} 9. Be3 {[%emt 0:06:54]} O-O {[%emt 0:00:58]} 10. Nbd2 {[%emt 0:00:40]} exd4 {[%emt 0:07:08]} 11. cxd4 {[%emt 0:01:48]} Nb4 {[%emt 0:02:39]} 12. Bxd7 {[%emt 0:03:25]} Qxd7 {[%emt 0:00:04]} 13. Nf1 {[%emt 0:02:04]} d5 {[%emt 0:02:00]} 14. e5 {[%emt 0:04:37]} f6 {[%emt 0:05:05]} 15. Ng3 {[%emt 0:05:08]} Nc6 {[%emt 0:16:33]} 16. Bd2 {[%emt 0:13:05]} fxe5 {[%emt 0:02:55]} 17. dxe5 {[%emt 0:02:48]} Nd8 {[%emt 0:00:14]} 18. Nd4 {[%emt 0:08:31]} Ne6 {[%emt 0:04:51]} 19. Qg4 {[%emt 0:03:10]} Nc5 {[%emt 0:02:40]} 20. e6 {[%emt 0:01:50]} 1/2-1/2

[Event "Austrian Youth-ch U18 Boys 2024"]
[Site "Leibnitz"]
[Date "2024.03.27"]
[Round "6.2"]
[White "Borrmann, Laurenz"]
[Black "Marakovits, Nico"]
[Result "1-0"]
[ECO "E49"]
[WhiteElo "2311"]
[BlackElo "2234"]
[Annotator "RC"]
[PlyCount "101"]
[EventDate "2024.03.23"]
[EventType "swiss"]
[EventCountry "AUT"]
[SourceTitle "playchess.com"]
[Source "ChessBase"]
[SourceQuality "1"]
[TimeControl "5400+30"]

1. d4 {[%emt 0:00:04]} Nf6 {[%emt 0:00:06]} 2. c4 {[%emt 0:00:18]} e6 {[%emt 0:00:09]} 3. Nc3 {[%emt 0:00:07]} Bb4 {[%emt 0:00:09]} 4. e3 {[%emt 0:00:07]} O-O {[%emt 0:00:38]} 5. Bd3 {[%emt 0:00:14]} d5 {[%emt 0:02:51]} 6. a3 {[%emt 0:00:24]} Bxc3+ {[%emt 0:00:38]} 7. bxc3 {[%emt 0:00:07]} dxc4 {[%emt 0:00:10]} 8. Bxc4 {[%emt 0:00:08]} c5 {[%emt 0:00:10]} 9. Ne2 {[%emt 0:00:11]} Qc7 {[%emt 0:00:17]} 10. Bd3 {[%emt 0:00:15]} Nc6 {[%emt 0:06:20]} 11. f4 {[%emt 0:00:21]} Rd8 {[%emt 0:04:18]} 12. O-O {[%emt 0:00:53]} b6 {[%emt 0:07:27]} 13. Ng3 {[%emt 0:01:57]} Bb7 {[%emt 0:18:59]} 14. Bb2 {[%emt 0:01:44]} a5 {[%emt 0:04:07]} 15. Nh5 {[%emt 0:08:41]} Nxh5 {[%emt 0:04:57]} 16. Qxh5 {[%emt 0:00:09]} g6 {[%emt 0:04:01]} 17. Qh6 {[%emt 0:02:42]} Qe7 {[%emt 0:04:46]} 18. Rf3 {[%emt 0:06:03]} Qf8 {[%emt 0:01:05]} 19. Qh4 {[%emt 0:01:23]} Qe7 {[%emt 0:00:16]} 20. Qf2 {[%emt 0:00:52]} e5 {[%emt 0:05:41]} 21. Rh3 {[%emt 0:04:04]} e4 {[%emt 0:04:59]} 22. Bc4 {[%emt 0:02:57]} Bc8 {[%emt 0:01:08]} 23. Rg3 {[%emt 0:04:11]} Be6 {[%emt 0:02:48]} 24. Be2 {[%emt 0:00:52]} cxd4 {[%emt 0:05:34]} 25. exd4 {[%emt 0:00:48]} Qf6 {[%emt 0:03:58]} 26. Rd1 {[%emt 0:02:47]} Ne7 {[%emt 0:01:17]} 27. c4 {[%emt 0:09:40]} Nf5 {[%emt 0:00:31]} 28. Rb3 {[%emt 0:00:34]} e3 {[%emt 0:01:46]} 29. Qf3 {[%emt 0:00:17]} Bd7 {[%emt 0:00:08]} 30. d5 {[%emt 0:03:18]} Qd6 {[%emt 0:01:02]} 31. Rc1 {[%emt 0:04:12]} Ba4 {[%emt 0:00:40]} 32. Rd3 {[%emt 0:00:22]} Re8 {[%emt 0:00:24]} 33. g4 {[%emt 0:02:35]} Nh4 {[%emt 0:00:40]} 34. Qg3 {[%emt 0:01:44]} g5 {[%emt 0:00:38]} 35. fxg5 {[%emt 0:00:58]} Qxg3+ {[%emt 0:00:37]} 36. hxg3 {[%emt 0:00:08]} Ng6 {[%emt 0:00:04]} 37. Bd4 {[%emt 0:00:17]} b5 {[%emt 0:01:18]} 38. c5 {[%emt 0:01:28]} b4 {[%emt 0:00:14]} 39. axb4 {[%emt 0:00:17]} Bb5 {[%emt 0:00:06]} 40. d6 {[%emt 0:05:10]} axb4 {[%emt 0:02:55]} 41. c6 {[%emt 0:02:12]} Bxd3 {[%emt 0:00:25]} 42. Bxd3 {[%emt 0:00:05]} e2 {[%emt 0:00:02]} 43. Kf2 {[%emt 0:00:15]} Ra2 {[%emt 0:00:23]} 44. Ke1 {[%emt 0:00:57]} Nf8 {[%emt 0:01:10]} 45. d7 {[%emt 0:01:17]} Rd8 {[%emt 0:00:04]} 46. Bf6 {[%emt 0:00:57]} b3 {[%emt 0:00:04]} 47. Bxd8 {[%emt 0:00:09]} b2 {[%emt 0:00:05]} 48. Rb1 {[%emt 0:00:05]} Ra1 {[%emt 0:00:07]} 49. Bf6 {[%emt 0:00:10]} Rxb1+ {[%emt 0:00:09]} 50. Bxb1 {[%emt 0:00:06]} h5 {[%emt 0:00:19]} 51. d8=N {[%emt 0:00:20]} 1-0

[Event "Austrian Youth-ch U18 Boys 2024"]
[Site "Leibnitz"]
[Date "2024.03.27"]
[Round "6.3"]
[White "Gschiel, Alexander"]
[Black "Lerch, Johannes"]
[Result "1-0"]
[ECO "E06"]
[WhiteElo "2336"]
[BlackElo "2258"]
[Annotator "RC"]
[PlyCount "99"]
[EventDate "2024.03.23"]
[EventType "swiss"]
[EventCountry "AUT"]
[SourceTitle "playchess.com"]
[Source "ChessBase"]
[SourceQuality "1"]
[TimeControl "5400+30"]

1. d4 {[%emt 0:00:06]} Nf6 {[%emt 0:00:10]} 2. c4 {[%emt 0:00:08]} e6 {[%emt 0:00:08]} 3. Nf3 {[%emt 0:00:10]} d5 {[%emt 0:00:11]} 4. g3 {[%emt 0:00:17]} Be7 {[%emt 0:00:12]} 5. Bg2 {[%emt 0:00:07]} O-O {[%emt 0:00:08]} 6. O-O {[%emt 0:00:12]} a5 {[%emt 0:00:08]} 7. Nc3 {[%emt 0:00:34]} dxc4 {[%emt 0:00:21]} 8. Ne5 {[%emt 0:06:59]} Nc6 {[%emt 0:00:26]} 9. Nxc6 {[%emt 0:02:38]} bxc6 {[%emt 0:00:25]} 10. Bxc6 {[%emt 0:01:26]} Rb8 {[%emt 0:00:09]} 11. Qa4 {[%emt 0:01:18]} Qxd4 {[%emt 0:15:10]} 12. Qxa5 {[%emt 0:05:04]} Qb6 {[%emt 0:12:45]} 13. Qa4 {[%emt 0:13:14]} Qa6 {[%emt 0:03:51]} 14. b3 {[%emt 0:06:36]} Bb4 {[%emt 0:06:36]} 15. Bb2 {[%emt 0:02:50]} Qxa4 {[%emt 0:19:38]} 16. Bxa4 {[%emt 0:03:07]} cxb3 {[%emt 0:04:19]} 17. Bxb3 {[%emt 0:03:17]} Ba6 {[%emt 0:00:59]} 18. Rfc1 {[%emt 0:00:28]} Ba5 {[%emt 0:00:58]} 19. e3 {[%emt 0:05:26]} Rfd8 {[%emt 0:03:13]} 20. Na4 {[%emt 0:12:55]} Rd2 {[%emt 0:13:27]} 21. Rc2 {[%emt 0:01:12]} Ne4 {[%emt 0:03:27]} 22. Bd4 {[%emt 0:02:59]} Ng5 {[%emt 0:05:11]} 23. Rxd2 {[%emt 0:01:56]} Nf3+ {[%emt 0:03:56]} 24. Kg2 {[%emt 0:00:08]} Nxd2 {[%emt 0:00:04]} 25. Nc5 {[%emt 0:00:09]} Bb5 {[%emt 0:00:25]} 26. Ba4 {[%emt 0:01:13]} Bc4 {[%emt 0:02:18]} 27. Bc2 {[%emt 0:04:37]} f5 {[%emt 0:01:31]} 28. Bb3 {[%emt 0:01:17]} Re8 {[%emt 0:02:41]} 29. Bxc4 {[%emt 0:01:33]} Nxc4 {[%emt 0:00:01]} 30. Rc1 {[%emt 0:00:07]} Nd6 {[%emt 0:00:30]} 31. Nb3 {[%emt 0:04:45]} e5 {[%emt 0:01:28]} 32. Bc5 {[%emt 0:01:44]} Ra8 {[%emt 0:01:44]} 33. a4 {[%emt 0:02:41]} Kf7 {[%emt 0:00:00]} 34. Nxa5 {[%emt 0:00:54]} Rxa5 {[%emt 0:00:00]} 35. Bb4 {[%emt 0:00:04]} Ra7 {[%emt 0:00:00]} 36. a5 {[%emt 0:01:56]} Ke6 {[%emt 0:00:00]} 37. Rc6 {[%emt 0:02:39]} Kd7 {[%emt 0:00:11]} 38. Rc5 {[%emt 0:00:05]} e4 {[%emt 0:00:45]} 39. g4 {[%emt 0:01:05]} Rb7 {[%emt 0:01:02]} 40. Bc3 {[%emt 0:00:27]} g6 {[%emt 0:00:32]} 41. gxf5 {[%emt 0:02:12]} gxf5 {[%emt 0:00:02]} 42. Bd4 {[%emt 0:00:06]} Ke6 {[%emt 0:01:54]} 43. a6 {[%emt 0:00:14]} Rb8 {[%emt 0:00:32]} 44. Rxc7 {[%emt 0:00:04]} Ra8 {[%emt 0:00:30]} 45. a7 {[%emt 0:00:46]} f4 {[%emt 0:00:19]} 46. Rxh7 {[%emt 0:01:03]} Nf5 {[%emt 0:00:25]} 47. Rh8 {[%emt 0:00:20]} fxe3 {[%emt 0:00:39]} 48. Rxa8 {[%emt 0:00:22]} e2 {[%emt 0:00:03]} 49. Bc3 {[%emt 0:00:13]} Nh4+ {[%emt 0:00:01]} 50. Kh3 {[%emt 0:00:08]} 1-0